Cogmind - Beta 15 @@@ ROGUE MODE // 2025.06.27 @ 13:14:05 Player: saltine Result: Destroyed by as-19878 with Assembled Blade Performance ------------- Evolutions (0) 0 Regions Visited (2) 400 Robots Destroyed (20) 100 Value Destroyed (351) 351 Prototype IDs (2) 40 Alien Tech Used (0) 0 Bonus (0) 0 TOTAL SCORE: 891 Bonus ------- None Cogmind --------- Core Integrity 0/250 Matter 196/300 Energy 43/100 System Corruption 0% Temperature Cool (0) Movement Treading (320) Ox2 Location -10/Mines Parts ------- > --- POWER (1) -------- (None) > --- PROPULSION (2) --- Light Treads Light Treads > --- UTILITY (2) ------ Huge Storage Unit > --- WEAPON (2) ------- Heavy Assault Rifle Heavy Assault Rifle > --- INVENTORY (25) --- Ion Engine Light Treads Light Treads Wheel Wheel VTOL Module VTOL Module VTOL Module VTOL Module Medium Matter Pod (100) Improved Targeting Computer Light Armor Plating Hacking Suite Beam Cannon Heavy Assault Rifle Heavy Assault Rifle Heavy Assault Rifle Heavy Assault Rifle Heavy Assault Rifle Grenade Launcher Grenade Launcher Grenade Launcher Peak State ------------ > --- POWER ------------ (None) > --- PROPULSION ------- Light Treads Light Treads > --- UTILITY ---------- Huge Storage Unit Light Armor Plating > --- WEAPON ----------- Heavy Assault Rifle Heavy Assault Rifle > --- INVENTORY -------- Ion Engine Light Treads Light Treads Light Treads Wheel Wheel VTOL Module VTOL Module VTOL Module VTOL Module Medium Matter Pod Improved Targeting Computer Light Armor Plating Hacking Suite Beam Cannon Light Assault Rifle Heavy Assault Rifle Heavy Assault Rifle Heavy Assault Rifle Heavy Assault Rifle Heavy Assault Rifle Heavy Assault Rifle Grenade Launcher Grenade Launcher Grenade Launcher [Rating: 11] Favorites ----------- Power Ion Engine Engine Ion Engine Propulsion Light Treads Treads Light Treads Leg Aluminum Leg Utility Light Armor Plating Storage Huge Storage Unit Protection Light Armor Plating Weapon Heavy Assault Rifle Ballistic Gun Heavy Assault Rifle Launcher Grenade Launcher Build | -11 -10 -10 ------- Run | Yrd Mat Min Slots Evolved . | . . . Power . | . . . Propulsion . | . . . Utility . | . . . Weapon . | . . . Parts Attached 21 | . 15 6 Power . | . . . Engine . | . . . Core . | . . . Reactor . | . . . Propulsion 6 | . 4 2 Treads 4 | . 2 2 Leg 2 | . 2 . Wheel . | . . . Hover . | . . . Flight . | . . . Utility 5 | . 5 . Device . | . . . Storage 3 | . 3 . Processor . | . . . Hackware . | . . . Protection 2 | . 2 . Artifact . | . . . Weapon 10 | . 6 4 Energy Gun . | . . . Energy Cannon . | . . . Ballistic Gun 8 | . 5 3 Ballistic Cannon . | . . . Launcher 2 | . 1 1 Special Weapon . | . . . Impact Weapon . | . . . Slashing Weapon . | . . . Piercing Weapon . | . . . Special Melee Weapon . | . . . Unidentified Prototypes . | . . . Parts Lost 9 | . 5 4 Power 1 | . 1 . Propulsion 4 | . 2 2 Utility 1 | . . 1 Weapon 3 | . 2 1 Highest Loss Streak 4 | . 3 4 To Critical Strikes . | . . . Average Backups 19 | . 19 24 Power 1 | . 1 1 Propulsion 7 | . 7 9 Utility 3 | . 3 4 Weapon 7 | . 7 10 Tool/Special . | . . . Unused Backups 21 | . 3 18 Power 2 | . 1 1 Propulsion 8 | . . 8 Utility 5 | . 1 4 Weapon 6 | . 1 5 Tool/Special . | . . . Average Slot Usage (%) 83 | . 83 83 Engine 2 | . 2 . Treads 22 | . 21 28 Leg 5 | . 5 . Storage 14 | . 14 14 Protection 9 | . 9 12 Ballistic Gun 27 | . 27 26 Peak Build Rating 11 | . 11 11 Average Rating 9 | . 9 10 On Entrance 7 | 6 6 11 Naked Turns . | . . . Heaviest Build 89 | 13 89 89 Greatest Support 40 | 20 40 40 Greatest Overweight (x) 4 | . 4 2 Average Overweight (x) . | . . 2 Largest Inventory Capacity 25 | . 25 25 Average Capacity 19 | . 19 25 Most Carried 25 | . 25 25 Average Carried 19 | . 19 24 Final Capacity 25 | 8 25 25 Final Carried 25 | 6 25 22 Class Distribution -------------------- 100% | Mutant Dominant Class ---------------- Mutant | -10/Materials Mutant | -10/Mines Resources | -11 -10 -10 ----------- Run | Yrd Mat Min Matter Collected 792 | 200 562 30 Remotely . | . . . Salvage Created 513 | . 431 82 Parts 37 | . 28 9 Haulers Intercepted 2 | . 2 . Recyclers Shooed . | . . . Parts Field Recycled . | . . . Retrieved Matter . | . . . Parts Self-Destructed . | . . . Prevented . | . . . Kills | -11 -10 -10 ------- Run | Yrd Mat Min Combat Hostiles Destroyed 18 | . 10 8 Guns 10 | . 7 3 AOE 8 | . 3 5 Classes Destroyed 7 | . 6 1 Worker 1 | . 1 . Tunneler 1 | . 1 . Hauler 2 | . 2 . Operator 2 | . 2 . Swarmer 8 | . 5 3 Grunt 6 | . 5 1 Assembled 4 | . . 4 Best Kill Streak 5 | . 3 5 Combat Bots Only 5 | . 3 5 Max Kills in Single Turn 3 | . 3 3 Gunslinging . | . . . Exploded 3 | . 3 3 Melee . | . . . Uniques/NPCs Destroyed . | . . . Combat | -11 -10 -10 -------- Run | Yrd Mat Min Hostile Shots Fired 139 | . 70 69 Missed 40 | . 14 26 Hits 99 | . 56 43 Melee 2 | . . 2 Projectile 97 | . 56 41 AOE 13 | . . 13 Part Disruptions 1 | . . 1 Damage Taken 1593 | . 595 998 Core 268 | . 121 147 Absorbed by Shields . | . . . Core Remaining (%) 100 | 100 . . Volleys Fired 74 | . 61 13 Largest 2 | . 2 2 Hottest 46 | . 46 46 Shots Fired 143 | . 121 22 Gun 138 | . 120 18 Cannon . | . . . Launcher 5 | . 1 4 Special . | . . . Kinetic 138 | . 120 18 Thermal . | . . . Explosive 5 | . 1 4 Electromagnetic . | . . . Robot Hit Streak 12 | . 12 8 Robot Miss Streak 4 | . 4 3 Penetration Max . | . . . Secondary Targets . | . . . Shots Hit Robots 89 | . 77 12 Core Hits 37 | . 26 11 Critical Kills . | . . . Critical Parts Destroyed 1 | . 1 . Critical Strikes 1 | . 1 . Destroy 1 | . 1 . Melee Attacks . | . . . Impact . | . . . Slashing . | . . . Piercing . | . . . Sneak Attacks . | . . . Combat Hostiles . | . . . Follow-up Attacks . | . . . Damage Inflicted 1502 | . 1116 386 Guns 1141 | . 990 151 Cannons . | . . . Explosions 305 | . 70 235 Melee . | . . . Ramming 56 | . 56 . Kinetic 1141 | . 990 151 Thermal . | . . . Explosive 305 | . 70 235 Electromagnetic . | . . . Impact . | . . . Slashing . | . . . Piercing . | . . . Highest Corruption . | . . . Average Corruption . | . . . Corruption Purged . | . . . Corruption Blocked . | . . . Overload Shots . | . . . Overflow Damage 34 | . . 34 Projectiles . | . . . Explosions 34 | . . 34 Melee . | . . . Knockbacks . | . . . Impact . | . . . Kinetic . | . . . Secondary . | . . . Self-Inflicted Damage 15 | . . 15 Shots 1 | . . 1 Rammed 5 | . 5 . Targets Rammed 7 | . 7 . Kicked 1 | . 1 . Crushed 1 | . 1 . Highest Temperature 3 | . 3 . Average Temperature 2 | . 2 . Received Heat Transfer 287 | . 225 62 Siege Activations . | . . . Martial Activations . | . . . Shielding Activations . | . . . Robots Disrupted . | . . . Combat Hostiles . | . . . Robots Corrupted . | . . . Combat Hostiles . | . . . Parts Fried . | . . . Impact Corruptions . | . . . Robots Melted . | . . . Combat Hostiles . | . . . Parts Melted . | . . . Heat Transferred . | . . . Parts Sabotaged . | . . . Parts Stolen . | . . . Parts Stripped . | . . . Power Chain Reactions . | . . . Alert | -11 -10 -10 ------- Run | Yrd Mat Min Maximum Alert Level . | . . . Low Security (%) 100 | . 100 100 Level 1 . | . . . Level 2 . | . . . Level 3 . | . . . Level 4 . | . . . Level 5 . | . . . High Security . | . . . Max Security . | . . . Peak Influence 94 | . 75 94 Initial . | . . . Average 12 | . 11 62 Influence Increases 468 | . 354 114 Destroy 0b10 Robot/C 280 | . 200 80 Destroy 0b10 Robot/NC 30 | . 30 . Destroy Leader 54 | . 44 10 Successful Hack 28 | . 28 . Disable Machine 15 | . 15 . Destroy Structure 31 | . 7 24 Lose Combat Pursuer 30 | . 30 . Influence Decreases 424 | . 354 70 Time Decay 383 | . 353 30 Lost Part 41 | . 1 40 Squads Dispatched 3 | . 3 . Investigation 1 | . 1 . Extermination . | . . . Reinforcement 2 | . 2 . Assault . | . . . Garrison . | . . . Intercept . | . . . Searches Triggered . | . . . Construction Impeded . | . . . Haulers Reinforced . | . . . Active Scanning Responses . | . . . Cargo Convoy Interrupts . | . . . Stealth | -11 -10 -10 --------- Run | Yrd Mat Min Distress Signals 1 | . 1 . Communications Jammed . | . . . Distress Signals . | . . . Times Spotted 59 | . 33 26 Peak Tracking Total 21 | . 4 21 Tactical Retreats 3 | . 2 1 Traps | -11 -10 -10 ------- Run | Yrd Mat Min Traps Triggered 2 | . 2 . Indirectly . | . . . Trap Hack Attempts . | . . . Triggered . | . . . Disarmed . | . . . Reprogrammed . | . . . Reused . | . . . Traps Extracted . | . . . Installed . | . . . Triggered . | . . . Machines | -11 -10 -10 ---------- Run | Yrd Mat Min Machines Disabled 1 | . 1 . Max in Single Turn 1 | . 1 . Machines Repaired . | . . . Machines Dismantled . | . . . Machines Sabotaged . | . . . Overloaded Fab Kills . | . . . Hacking | -11 -10 -10 --------- Run | Yrd Mat Min Machines Accessed 7 | . 7 . Terminals 7 | . 7 . Fabricators . | . . . Repair Stations . | . . . Recycling Units . | . . . Scanalyzers . | . . . Garrison Access . | . . . Total Hacks 29 | . 29 . Successful 13 | . 13 . Failed 16 | . 16 . Catastrophic 2 | . 2 . Database Lockouts . | . . . Manual 10 | . 10 . Terminals 29 | . 29 . Fabricators . | . . . Repair Stations . | . . . Recycling Units . | . . . Scanalyzers . | . . . Garrison Access . | . . . Terminal Hacks 6 | . 6 . Prototype ID Bank 1 | . 1 . Terminal Index 1 | . 1 . Locate Traps 1 | . 1 . Hauler Manifests 1 | . 1 . Registered Components 1 | . 1 . Zone Layout 1 | . 1 . Fabricator Hacks . | . . . Repair Station Hacks . | . . . Recycling Unit Hacks . | . . . Scanalyzer . | . . . Garrison Access Hacks . | . . . Unauthorized Hacks 7 | . 7 . Terminals 7 | . 7 . Botnet 1 | . 1 . Skim 6 | . 6 . Fabricators . | . . . Repair Stations . | . . . Recycling Units . | . . . Scanalyzers . | . . . Garrison Access . | . . . Data Cores Recovered . | . . . Used . | . . . Hacking Detections 7 | . 7 . Full Trace Events . | . . . Feedback Events . | . . . Feedback Blocked . | . . . Robot Schematics Acquired . | . . . Robots Built . | . . . Authchips . | . . . Time . | . . . Total Robot Build Rating . | . . . Part Schematics Acquired . | . . . Parts Built . | . . . Authchips . | . . . Time . | . . . Total Part Build Rating . | . . . Parts Repaired . | . . . Time . | . . . Parts Recycled . | . . . Recycled Matter . | . . . Retrieved Matter . | . . . Retrieved Components . | . . . Parts Scanalyzed . | . . . Part Schematics Acquired . | . . . Parts Damaged . | . . . Bothacking | -11 -10 -10 ------------ Run | Yrd Mat Min Used RIF Installer . | . . . Robots Hacked . | . . . Non-combat . | . . . Combat . | . . . Robot Hacks Applied . | . . . Relay Couplers Released . | . . . Fabnet Peak Effective % . | . . . Robots Rewired . | . . . Allies Hacked . | . . . Hacks Repelled . | . . . Allies | -11 -10 -10 -------- Run | Yrd Mat Min Total Allies . | . . . Largest Group . | . . . Highest-Rated Group . | . . . Highest-Rated Ally . | . . . Total Orders . | . . . Ally Attacks . | . . . Total Damage . | . . . Kills . | . . . Allies Corrupted . | . . . Allies Melted . | . . . Intel | -11 -10 -10 ------- Run | Yrd Mat Min Active Infowar (turns) . | . . . Robot Analysis Total . | . . . Derelict Logs Recovered . | . . . Drone Launches . | . . . Drone Recoveries . | . . . Exploration | -11 -10 -10 ------------- Run | Yrd Mat Min Turns Passed 2501 | . 2439 62 Spaces Moved 1007 | 1 1000 6 Core 4 | . 4 . Treads 683 | . 677 6 Legs 320 | 1 319 . Wheels . | . . . Hover . | . . . Flight . | . . . Fastest Speed 120 | 120 120 320 Average Speed 219 | 120 218 320 Slowest Speed 320 | 120 320 320 Overloaded Moves . | . . . Propulsion Burnouts . | . . . Robots Hopped . | . . . Potential Cave-ins . | . . . Cave-ins Triggered . | . . . Exploration Rate (%) 36 | 2 96 10 Regions Visited 2 Branch Regions 1 Pre-discovered Areas 3 | . 3 . Known Exits Taken . | . . . Unknown Exits Taken 2 | 1 1 . Scrap Searched . | . . . Spaces Dug . | . . . Terrain Destroyed 30 | . 5 25 Melee . | . . . Projectile . | . . . AOE 30 | . 5 25 Terrain Rammed . | . . . Walls Destroyed . | . . . Machines Disabled . | . . . Actions | -11 -10 -10 --------- Run | Yrd Mat Min Total 1147 | . 1122 25 Wait 4 | . 4 . Move 1005 | . 999 6 Hop . | . . . Pick Up 26 | . 26 . Fast Attach 7 | . 7 . Attach 8 | . 5 3 Detach 3 | . 3 . Swap 7 | . 4 3 Drop 6 | . 6 . Fire 74 | . 61 13 Melee . | . . . Ram . | . . . Kick 1 | . 1 . Crush 6 | . 6 . Escape Stasis . | . . . Rewire . | . . . Trap . | . . . Miscellaneous . | . . . Route ------- -11/Scrapyard -10/Materials (discovered 5 exits: *Mat x3 / [*Min] / *Sub) -10/Mines (discovered 2 exits: Mat / Sub) History --------- Turn | Location | Event 1 | -11/Scrapyard | Discovered new exit (range 0) 1 | -11/Scrapyard | Entered Materials 2 | -10/Materials | Met a group of wandering Federalists 79 | -10/Materials | Discovered new exit (range 16) 110 | -10/Materials | Lost 3 allies 217 | -10/Materials | Discovered new exit (range 16) 316 | -10/Materials | Discovered new exit (range 15) 320 | -10/Materials | Build established: Mutant 469 | -10/Materials | Learned location of Recycling (-8) 531 | -10/Materials | Lost 3 parts (1p2n) 607 | -10/Materials | Discovered new exit (range 10) 628 | -10/Materials | Identified exit to Materials 658 | -10/Materials | Learned Storage trap positions 693 | -10/Materials | Learned location of 2 exits from Subcaves 694 | -10/Materials | Learned 4 Subcaves zone layouts 2440 | -10/Materials | Entered Mines 2441 | -10/Mines | Identified exit to Subcaves 2472 | -10/Mines | Assembled infested the area 2486 | -10/Mines | Core integrity fell below 50% 2498 | -10/Mines | Core integrity fell below 20% 2502 | -10/Mines | Destroyed by as-19878 with Assembled Blade Last Messages --------------- 02490_ G-47 Trooper destroyed. 02490_ Lgt. Treads destroyed. 02492_ Hvy. Assault Rifle destroyed. 02492_ Lgt. Armor Plating destroyed. 02492_ K-01 Serf collects debris. 02494_ The unstable cave ceiling collapses. 02495_ K-01 Serf cleans the Seismic Survey Station. 02495_ as-88397 destroyed. 02496_ The unstable cave ceiling collapses. 02498_ as-20095 destroyed. 02498_ as-97390 destroyed. 02498_ as-10636 destroyed. 02499_ as-09076 destroyed. 02499_ as-77033 destroyed. 02499_ as-63128 destroyed. 02499_ K-01 Serf collects debris. 02500_ The unstable cave ceiling collapses. 02500_ as-86913 destroyed. 02500_ as-49108 destroyed. 02502_ The unstable cave ceiling collapses. Map ----- +----------------------------------------------------+ | ??????????????????????????????????????????? | | ??????????????????????????????????????????? | | ??????????????????????????????????????????? | | ??????????????????????????????????????????? | | ??????????????????????????????????????????? | | ??????????????????????????????????????????? | | ??????????????????????????????????????????? | | ??????????????????????????????????????????? | | ??????????????????????????????????????????? | | ??????????????????????????????????????????? | | ???????????????? ????????????????????????? | | ?????????????? ????????????????????????? | | ???????????? ????????????????????????? | | ???????????## aa#???????????????????????? | | ???????????# a % ###????????????????????? | | ??????? ???? a ##???????????????????? | | ???????? #### [ ???????????????????? | | ????????? [ % ????????????????????? | | ?????????? !%= ????????????????????? | | ??????????? ###?##???????????????? | | ????????????# ? ????????????????? | | ?????????????# # #?????????????????? | | ????????????## #?????????????????? | | ????????????# #?????????????????? | | ?????????????# a #?????????????????? | | ?????????????# @ #?????????????????? | | ????????????## dd #?????????????????? | | ????????????# #?????????????????? | | ???????????## ###?????????????????? | | ??????# ##???????????????????? | | ??????####### """ = #????????????????????? | | ????????????# """ #????????????????????? | | ????????????# """ g #????????????????????? | | ????????????# k #????????????????????? | | ????????????# """ #????????????????????? | | ????????????# """ #????????????????????? | | ????????????# """g #????????????????????? | | ????????????? ? u #????????????????????? | | ???????????????#######????????????????????? | | ??????????????????????????????????????????? | | ??????????????????????????????????????????? | | ??????????????????????????????????????????? | | ??????????????????????????????????????????? | | ??????????????????????????????????????????? | | ????????????